lending/lending_fUSD_20240522
["ID","MTS","AMOUNT","RATE_DAILY","PERIOD"]
[327721595,1716381046837,-166.73621259,0.00025797,2]
[327721596,1716381046846,-150.0,0.000258,4]
[327721597,1716381046856,-155.31485281,0.00025832,2]
[327721598,1716381046866,-158.89683256,0.00025843,2]
[327721599,1716381046875,-154.67800329,0.00025897,2]
[327721600,1716381046884,-543.40714206,0.00025917,2]
[327721601,1716381046894,-313.88315653,0.00025925,2]
[327721602,1716381046903,-159.36999109,0.00026016,2]
[327721603,1716381046913,-275.100852,0.00026025,2]
[327721604,1716381046922,-166.66666666,0.00026056,2]
[327721605,1716381046932,-1575.86,0.000261,2]
[327721606,1716381046941,-1889.05,0.000261,2]
[327721607,1716381046951,-150.0,0.00026122,2]
[327721608,1716381046961,-151.0,0.0002613,2]
[327721609,1716381046971,-301.35,0.00026136,2]
[327721610,1716381046980,-523.17,0.00026136,2]
[327721611,1716381046990,-151.06,0.00026136,2]
[327721612,1716381047004,-420.93,0.00026137,2]
[327721613,1716381047014,-351.31,0.00026137,2]
[327721614,1716381047023,-150.0,0.00026137,2]
[327721615,1716381047033,-163.54,0.00026137,2]
[327721616,1716381047042,-524.28,0.00026137,2]
[327721617,1716381047053,-150.0,0.00026137,2]
[327721618,1716381047062,-524.28,0.00026137,2]
[327721619,1716381047071,-163.54,0.00026137,2]
[327721620,1716381047080,-420.93,0.00026137,2]
[327721621,1716381047091,-150.0,0.00026137,2]
[327721622,1716381047100,-163.54,0.00026137,2]
[327721623,1716381047109,-150.0,0.00026137,2]
[327721624,1716381047119,-150.0,0.00026137,2]
[327721625,1716381047133,-420.93,0.00026137,2]
[327721626,1716381047142,-420.93,0.00026137,2]
[327721627,1716381047152,-163.54,0.00026137,2]
[327721628,1716381047162,-420.93,0.00026137,2]
[327721629,1716381047174,-163.54,0.00026137,2]
[327721630,1716381047183,-418.71,0.00026137,2]
[327721631,1716381047193,-163.54,0.00026137,2]
[327721632,1716381047202,-163.54,0.00026137,2]
[327721633,1716381047213,-163.54,0.00026137,2]
[327721634,1716381047223,-275.100852,0.00026139,2]
[327721635,1716381047233,-154.21988294,0.00026152,2]
[327721636,1716381047242,-463.50856912,0.00026173,2]
[327721637,1716381047252,-150.0,0.00026178,2]
[327721638,1716381047262,-270.7,0.00026183,2]
[327721639,1716381047271,-150.0,0.00026188,2]
[327721640,1716381047280,-543.40714206,0.00026199,2]
[327721641,1716381047290,-150.0,0.00026214,2]
[327721642,1716381047301,-543.40714206,0.00026221,2]
[327721643,1716381047310,-463.50856912,0.00026252,2]
[327721644,1716381047319,-150.0,0.00026258,2]
[327721645,1716381047329,-313.88315653,0.00026268,2]
[327721646,1716381047338,-2500.0,0.000263,2]
[327721647,1716381047348,-150.0,0.000263,5]
[327721648,1716381047358,-151.97205109,0.00026331,2]
[327721649,1716381047367,-150.0,0.00026349,2]
[327721650,1716381047377,-463.50856912,0.00026351,2]
[327721651,1716381047386,-150.0,0.00026361,2]
[327721652,1716381047396,-151.8895225,0.0002638,2]
[327721653,1716381047406,-155.31485281,0.00026472,2]
[327721654,1716381047415,-275.100852,0.00026492,2]
[327721655,1716381047424,-166.66666666,0.00026496,2]
[327721656,1716381047434,-543.40714206,0.000265,2]
[327721657,1716381047443,-150.0,0.0002652,2]
[327721658,1716381047452,-150.0,0.00026537,2]
[327721659,1716381047462,-150.0,0.0002654,2]
[327721660,1716381047471,-158.89683256,0.00026541,2]
[327721661,1716381047480,-159.36999109,0.00026576,2]
[327721662,1716381047490,-150.0,0.00026608,2]
[327721663,1716381047499,-156.9120435,0.00026629,2]
[327721664,1716381047509,-463.50856912,0.00026638,2]
[327721665,1716381047518,-463.50856912,0.0002666,2]
[327721666,1716381047527,-151.97205109,0.00026687,2]
[327721667,1716381047537,-193.529612,0.00026718,2]
[327721668,1716381047546,-1500.0,0.000268,2]
[327721669,1716381047558,-150.0,0.000268,5]
[327721670,1716381047567,-152.98488687,0.00026851,2]
[327721671,1716381047577,-150.0,0.00026861,2]
[327721672,1716381047586,-151.97205109,0.00026871,2]
[327721673,1716381047595,-150.0,0.00026881,2]
[327721674,1716381047604,-497.69,0.00026908,2]
[327721675,1716381047613,-370.19,0.00026921,2]
[327721676,1716381047622,-275.100852,0.00026936,2]
[327721677,1716381047633,-155.31485281,0.00026937,2]
[327721678,1716381047643,-152.98488687,0.00026971,2]
[327721679,1716381047653,-155.31485281,0.00026975,2]
[327721680,1716381047663,-152.98488687,0.00026993,2]
[327721681,1716381047672,-155.0,0.00027,4]
[327721682,1716381047681,-832.0508297,0.00027,2]
[327721683,1716381047691,-2000.0,0.00027,2]
[327721684,1716381047701,-300.0,0.00027,2]
[327721685,1716381047710,-152.98488687,0.00027004,2]
[327721686,1716381047719,-3900.196605,0.0002701,2]
[327721687,1716381047729,-156.04573926,0.0002705,2]
[327721688,1716381047739,-152.98488687,0.00027074,2]
[327721689,1716381047750,-155.46791382,0.0002709,2]
[327721690,1716381047759,-1575.86,0.000271,2]
[327721691,1716381047769,-1889.05,0.000271,2]
[327721692,1716381047778,-155.31485281,0.0002711,2]
[327721693,1716381047788,-154.49054118,0.00027121,2]
[327721694,1716381047797,-157.54884506,0.00027148,2]
[327721695,1716381047808,-150.0,0.00027161,2]
[327721696,1716381047818,-543.40714206,0.00027177,2]
[327721697,1716381047828,-150.0,0.00027181,2]
[327721698,1716381047837,-155.31485281,0.00027211,2]
[327721699,1716381047847,-155.31485281,0.00027214,2]
[327721700,1716381047857,-150.0,0.00027229,2]
[327721701,1716381047867,-3089.79346649,0.00027255,2]
[327721702,1716381047877,-152.98488687,0.00027273,2]
[327721703,1716381047887,-168.22440172,0.0002729,2]
[327721704,1716381047896,-150.0,0.00027295,2]
[327721705,1716381047906,-1500.0,0.000273,2]
[327721706,1716381047916,-150.0,0.000273,5]
[327721707,1716381047925,-150.0,0.00027303,2]
[327721708,1716381047935,-151.97205109,0.0002731,2]
[327721709,1716381047945,-463.50856912,0.00027338,2]
[327721710,1716381047955,-155.31485281,0.00027353,2]
[327721711,1716381047964,-150.0,0.00027356,2]
[327721712,1716381047974,-543.40714206,0.00027379,2]
[327721713,1716381047983,-151.0,0.00027397,7]
[327721714,1716381047992,-151.0,0.00027397,7]
[327721715,1716381048002,-153.763669,0.00027397,7]
[327721716,1716381048011,-151.0,0.00027397,7]
[327721717,1716381048021,-151.0,0.00027397,7]
[327721718,1716381048030,-270.48,0.00027397,7]
[327721719,1716381048040,-151.0,0.00027397,7]
[327721720,1716381048052,-235.504445,0.00027397,7]
[327721721,1716381048061,-14160.35,0.00027397,2]
[327721722,1716381048071,-151.941423,0.00027397,7]
[327721723,1716381048080,-176.886962,0.00027397,7]
[327721724,1716381048089,-176.886962,0.00027397,7]
[327721725,1716381048098,-176.886962,0.00027397,7]
[327721726,1716381048107,-176.886962,0.00027397,7]
[327721727,1716381048116,-176.886962,0.00027397,7]
[327721728,1716381048125,-176.886962,0.00027397,7]
[327721729,1716381048138,-15832.07,0.00027397,2]
[327721730,1716381048147,-151.0,0.00027397,7]
[327721731,1716381048157,-162.007502,0.00027397,7]
[327721732,1716381048166,-238.41,0.00027397,10]
[327721733,1716381048175,-150.0,0.00027398,2]
[327721734,1716381048184,-200.0,0.000274,2]
[327721735,1716381048194,-151.0,0.000274,7]
[327721736,1716381048298,-151.0,0.000274,7]
[327721737,1716381048312,-171.688414,0.000274,7]
[327721738,1716381048321,-151.0,0.000274,7]
[327721739,1716381048331,-151.0,0.000274,7]
[327721740,1716381048341,-151.0,0.000274,7]
[327721741,1716381048351,-151.0,0.000274,7]
[327721742,1716381048361,-151.0,0.000274,7]
[327721743,1716381048371,-263.692458,0.000274,7]
[327721744,1716381048380,-151.0,0.000274,7]
[327721745,1716381048389,-500.0,0.000274,2]
[327721746,1716381048398,-509.61,0.000274,2]
[327721747,1716381048407,-509.61,0.000274,2]
[327721748,1716381048417,-509.61,0.000274,2]
[327721749,1716381048426,-509.61,0.000274,2]
[327721750,1716381048436,-509.61,0.000274,2]
[327721751,1716381048445,-509.61,0.000274,2]
[327721752,1716381048455,-509.61,0.000274,2]
[327721753,1716381048464,-509.61,0.000274,2]
[327721754,1716381048473,-509.61,0.000274,2]
[327721755,1716381048482,-543.40714206,0.0002741,2]
[327721756,1716381048492,-150.0,0.0002742,2]
[327721757,1716381048501,-313.88315653,0.00027427,2]
[327721758,1716381048510,-463.50856912,0.00027427,2]
[327721759,1716381048520,-150.0,0.00027438,2]
[327721760,1716381048529,-150.0,0.00027444,2]
[327721761,1716381048538,-150.0,0.00027452,2]
[327721762,1716381048548,-150.0,0.00027475,2]
[327721763,1716381048559,-463.50856912,0.00027486,2]
[327721764,1716381048568,-154.49054118,0.00027491,2]
[327721765,1716381048577,-188.96910441,0.000275,2]
[327721766,1716381048586,-151.0,0.000275,7]
[327721767,1716381048596,-173.1015,0.000275,7]
[327721768,1716381048605,-173.1015,0.000275,7]
[327721769,1716381048615,-169.896548,0.000275,7]
[327721770,1716381048624,-169.896548,0.000275,7]
[327721771,1716381048635,-151.0,0.000275,7]
[327721772,1716381048644,-151.0,0.000275,7]
[327721773,1716381048654,-151.0,0.000275,7]
[327721774,1716381048663,-151.0,0.000275,7]
[327721775,1716381048672,-240.468899,0.000275,7]
[327721776,1716381048682,-211.268041,0.000275,7]
[327721777,1716381048691,-211.268041,0.000275,7]
[327721778,1716381048700,-183.206912,0.000275,7]
[327721779,1716381048709,-183.206912,0.000275,7]
[327721780,1716381048718,-290.156472,0.000275,7]
[327721781,1716381048728,-290.156472,0.000275,7]
[327721782,1716381048737,-468.213742,0.000275,7]
[327721783,1716381048746,-468.213742,0.000275,7]
[327721784,1716381048756,-153.390977,0.000275,7]
[327721785,1716381048766,-151.0,0.000275,7]
[327721786,1716381048775,-256.687944,0.000275,7]
[327721787,1716381048785,-1719.128717,0.000275,7]
[327721788,1716381048794,-1719.128717,0.000275,7]
[327721789,1716381048804,-157.873605,0.000275,7]
[327721790,1716381048814,-153.956021,0.000275,7]
[327721791,1716381048823,-176.886962,0.000275,7]
[327721792,1716381048834,-153.956021,0.000275,7]
[327721793,1716381048844,-176.886962,0.000275,7]
[327721794,1716381048854,-277.207136,0.000275,7]
[327721795,1716381048863,-277.207136,0.000275,7]
[327721796,1716381048872,-150.0,0.00027512,2]
[327721797,1716381048881,-150.0,0.00027513,2]
[327721798,1716381048891,-150.0,0.00027531,2]
[327721799,1716381048901,-159.36999109,0.00027535,2]
[327721800,1716381048910,-275.100852,0.00027543,2]
[327721801,1716381048919,-154.81828761,0.00027555,2]
[327721802,1716381048929,-150.0,0.0002756,2]
[327721803,1716381048941,-160.36674768,0.00027613,2]
[327721804,1716381048951,-463.50856912,0.00027615,2]
[327721805,1716381048961,-150.0,0.00027615,2]
[327721806,1716381048970,-150.0,0.00027622,2]
[327721807,1716381048979,-152.98488687,0.00027636,2]
[327721808,1716381048989,-313.88315653,0.00027644,2]
[327721809,1716381048998,-543.40714206,0.00027646,2]
[327721810,1716381049007,-150.0,0.0002766,2]
[327721811,1716381049017,-150.0,0.00027665,2]
[327721812,1716381049026,-158.89683256,0.00027679,2]
[327721813,1716381049035,-1348.03591491,0.00027685,2]
[327721814,1716381049044,-151.0,0.00027685,7]
[327721815,1716381049054,-151.0,0.00027685,7]
[327721816,1716381049063,-151.0,0.00027685,7]
[327721817,1716381049073,-151.0,0.00027685,7]
[327721818,1716381049082,-151.0,0.00027685,7]
[327721819,1716381049092,-151.0,0.00027685,7]
[327721820,1716381049101,-1500.0,0.00027689,2]
[327721821,1716381049113,-150.0,0.00027689,2]
[327721822,1716381049123,-9323.69780628,0.000277,2]
[327721823,1716381049137,-150.0,0.00027717,2]
[327721824,1716381049146,-275.100852,0.00027727,2]
[327721825,1716381049157,-150.0,0.00027751,2]
[327721826,1716381049167,-150.0,0.00027754,2]
[327721827,1716381049177,-150.0,0.00027758,2]
[327721828,1716381049186,-150.0,0.0002777,2]
[327721829,1716381049196,-150.0,0.00027774,2]
[327721830,1716381049207,-1104.424,0.00027787,2]
[327721831,1716381049217,-1500.0,0.000278,2]
[327721832,1716381049226,-150.0,0.000278,5]
[327721833,1716381049235,-159.16129054,0.00027814,2]
[327721834,1716381049244,-150.0,0.00027817,2]
[327721835,1716381049253,-150.0,0.00027836,2]
[327721836,1716381049263,-1500.0,0.00027841,2]
[327721837,1716381049272,-151.0,0.00027841,7]
[327721838,1716381049281,-1500.0,0.00027843,2]
[327721839,1716381049291,-150.0,0.00027848,2]
[327721840,1716381049303,-313.88315653,0.00027849,2]
[327721841,1716381049312,-543.40714206,0.0002785,2]
[327721842,1716381049322,-162.79015965,0.00027856,2]
[327721843,1716381049330,-1500.0,0.00027861,2]
[327721844,1716381049340,-150.0,0.00027861,2]
[327721845,1716381049348,-1719.128717,0.00027866,7]
[327721846,1716381049358,-1719.128717,0.00027866,7]
[327721847,1716381049366,-153.956021,0.00027866,7]
[327721848,1716381049376,-176.886962,0.00027866,7]
[327721849,1716381049385,-153.956021,0.00027866,7]
[327721850,1716381049394,-176.886962,0.00027866,7]
[327721851,1716381049404,-277.207136,0.00027866,7]
[327721852,1716381049413,-277.207136,0.00027866,7]
[327721853,1716381049423,-151.0,0.00027866,7]
[327721854,1716381049432,-1046154.99087839,0.00027866,7]
[327721855,1716381049860,-58846.5685398,0.00027866,7]
[327721856,1716381049870,-2741.66071499,0.00027867,2]
[327721857,1716381049880,-463.50856912,0.00027883,2]
[327721858,1716381049890,-264.06979507,0.00027889,2]
[327721859,1716381049899,-150.0,0.0002789,2]
[327721860,1716381049908,-1300.0,0.000279,10]
[327721861,1716381049917,-150.0,0.000279,2]
[327721862,1716381049927,-1500.0,0.00027908,2]
[327721863,1716381049936,-150.0,0.00027922,2]
[327721864,1716381049946,-150.0,0.00027935,2]
[327721865,1716381049955,-150.0,0.00027938,2]
[327721866,1716381049964,-154.21988296,0.00027954,2]
[327721867,1716381049980,-150.0,0.00027959,2]
[327721868,1716381049998,-301.09940845,0.0002796,2]
[327721869,1716381050014,-463.50856912,0.00027971,2]
[327721870,1716381050032,-543.40714206,0.00027972,2]
[327721871,1716381050054,-1500.0,0.00027973,2]
[327721872,1716381050070,-150.0,0.00027991,2]
[327721873,1716381050088,-150.0,0.00027991,2]
[327721874,1716381050101,-150.0,0.00027994,2]
[327721875,1716381050117,-24212.65784187,0.00028,2]
[327721876,1716381050137,-484.25315683,0.00028,2]
[327721877,1716381050157,-484.06727488,0.00028,2]
[327721878,1716381050170,-350.408241,0.00028,2]
[327721879,1716381050187,-23445.00560171,0.00028,14]
[327721880,1716381050202,-500.0,0.00028,2]
[327721881,1716381050219,-1039.40241281,0.00028,2]
[327721882,1716381050231,-445.41817332,0.00028,2]
[327721883,1716381050249,-37481.60438299,0.00028,2]
[327721884,1716381050264,-1043.83643081,0.00028,2]
[327721885,1716381050279,-257.11879413,0.00028,2]
[327721886,1716381050295,-150.0,0.00028022,2]
[327721887,1716381050311,-150.0,0.00028033,2]
[327721888,1716381050326,-150.0,0.00028034,2]
[327721889,1716381050341,-1500.0,0.00028046,2]
[327721890,1716381050355,-1500.0,0.00028069,2]
[327721891,1716381050370,-150.0,0.00028081,2]
[327721892,1716381050385,-150.0,0.0002809,2]
[327721893,1716381050400,-160.36674768,0.00028091,2]
[327721894,1716381050415,-1575.86,0.000281,2]
[327721895,1716381050431,-1889.05,0.000281,2]
[327721896,1716381050445,-313.88315653,0.00028117,2]
[327721897,1716381050460,-150.0,0.00028122,2]
[327721898,1716381050475,-313.88315653,0.00028129,2]
[327721899,1716381050490,-543.40714206,0.00028143,2]
[327721900,1716381050506,-1500.0,0.00028148,2]
[327721901,1716381050521,-1500.0,0.00028148,2]
[327721902,1716381050535,-1500.0,0.00028155,2]
[327721903,1716381050552,-151.8895225,0.00028165,2]
[327721904,1716381050568,-190.53449132,0.00028175,2]
[327721905,1716381050582,-151.97205109,0.00028191,2]
[327721906,1716381050597,-150.0,0.00028215,2]
[327721907,1716381050611,-393.0,0.00028219,5]
[327721908,1716381050626,-150.0,0.00028227,2]
[327721909,1716381050640,-1500.0,0.00028233,2]
[327721910,1716381050656,-151.8895225,0.00028242,2]
[327721911,1716381050670,-1500.0,0.00028252,2]
[327721912,1716381050685,-275.100852,0.00028255,2]
[327721913,1716381050701,-153.3330513,0.00028267,2]
[327721914,1716381050715,-1500.0,0.000283,2]
[327721915,1716381050730,-150.0,0.000283,5]
[327721916,1716381050744,-154.49054118,0.00028313,2]
[327721917,1716381050759,-1500.0,0.00028321,2]
[327721918,1716381050774,-1500.0,0.00028326,2]
[327721919,1716381050788,-1500.0,0.00028329,2]
[327721920,1716381050804,-151.8895225,0.0002834,2]
[327721921,1716381050818,-166.66666666,0.00028365,2]
[327721922,1716381050833,-150.0,0.00028395,2]
[327721923,1716381050847,-543.40714206,0.00028397,2]
[327721924,1716381050864,-463.50856912,0.00028405,2]
[327721925,1716381050874,-150.0,0.00028409,2]
[327721926,1716381050886,-150.0,0.0002842,2]
[327721927,1716381050897,-150.0,0.00028422,2]
[327721928,1716381050906,-174.08949677,0.00028432,2]
[327721929,1716381050916,-150.0,0.00028438,2]
[327721930,1716381051089,-150.0,0.00028439,2]
[327721931,1716381051119,-270.7,0.00028447,2]
[327721932,1716381051133,-1500.0,0.00028452,2]
[327721933,1716381051142,-151.0,0.00028452,7]
[327721934,1716381051151,-151.8895225,0.00028453,2]
[327721935,1716381051161,-150.0,0.00028468,2]
[327721936,1716381051171,-150.0,0.0002849,2]
[327721937,1716381051181,-179.04,0.00028493,2]
[327721938,1716381051190,-150.0,0.00028501,2]
[327721939,1716381051199,-150.0,0.00028517,2]
[327721940,1716381051211,-150.0,0.00028536,2]
[327721941,1716381051221,-150.0,0.00028563,2]
[327721942,1716381051230,-178.43248333,0.00028578,2]
[327721943,1716381051239,-150.0,0.00028592,2]
[327721944,1716381051248,-1500.0,0.00028593,2]
[327721945,1716381051258,-160.36674769,0.00028597,2]
[327721946,1716381051267,-19623.63845774,0.000286,2]
[327721947,1716381051277,-166.29644053,0.00028602,2]
[327721948,1716381051286,-152.98488687,0.00028608,2]
[327721949,1716381051295,-1500.0,0.00028617,2]
[327721950,1716381051306,-166.66666667,0.0002862,2]
[327721951,1716381051316,-275.100852,0.00028624,2]
[327721952,1716381051325,-150.0,0.00028634,2]
[327721953,1716381051335,-200.0,0.00028635,2]
[327721954,1716381051344,-1000.0,0.00028636,15]
[327721955,1716381051353,-200.0,0.00028636,2]
[327721956,1716381051363,-150.0,0.00028647,2]
[327721957,1716381051372,-150.0,0.00028651,2]
[327721958,1716381051382,-279.1586375,0.00028674,2]
[327721959,1716381051391,-313.88315653,0.00028676,2]
[327721960,1716381051400,-153.3330513,0.00028681,2]
[327721961,1716381051409,-1500.0,0.0002869,2]
[327721962,1716381051418,-150.0,0.00028707,2]
[327721963,1716381051427,-150.0,0.00028719,2]
[327721964,1716381051436,-275.100852,0.00028733,2]
[327721965,1716381051444,-154.49054118,0.00028735,2]
[327721966,1716381051453,-154.49054118,0.00028741,2]
[327721967,1716381051462,-1500.0,0.00028749,2]
[327721968,1716381051471,-150.0,0.00028751,2]
[327721969,1716381051480,-153.95014873,0.00028772,2]
[327721970,1716381051489,-154.49054118,0.00028776,2]
[327721971,1716381051498,-868.0,0.0002879,2]
[327721972,1716381051507,-543.40714206,0.00028793,2]
[327721973,1716381051518,-1719.128717,0.00028793,7]
[327721974,1716381051527,-1719.128717,0.00028793,7]
[327721975,1716381051537,-153.956021,0.00028793,7]
[327721976,1716381051546,-176.886962,0.00028793,7]
[327721977,1716381051561,-153.956021,0.00028793,7]
[327721978,1716381051569,-176.886962,0.00028793,7]
[327721979,1716381051580,-277.207136,0.00028793,7]
[327721980,1716381051590,-277.207136,0.00028793,7]
[327721981,1716381051599,-160.0,0.000288,2]
[327721982,1716381051609,-887.872603,0.000288,2]
[327721983,1716381051618,-486.0,0.000288,13]
[327721984,1716381051628,-1500.0,0.000288,2]
[327721985,1716381051642,-150.0,0.000288,6]
[327721986,1716381051652,-154.49054118,0.00028839,2]
[327721987,1716381051661,-463.50856912,0.00028849,2]
[327721988,1716381051670,-275.100852,0.00028853,2]
[327721989,1716381051680,-150.0,0.00028855,2]
[327721990,1716381051690,-152.98488687,0.0002887,2]
[327721991,1716381051699,-377.89293188,0.00028877,2]
[327721992,1716381051708,-156.37954986,0.00028877,2]
[327721993,1716381051717,-706.35011166,0.00028878,2]
[327721994,1716381051727,-535.53037562,0.00028878,2]
[327721995,1716381051736,-1258.86655938,0.00028878,2]
[327721996,1716381051746,-428.28701049,0.00028878,2]
[327721997,1716381051755,-4426.98574569,0.00028878,2]
[327721998,1716381051767,-151.0,0.00028878,7]
[327721999,1716381051776,-1296.53199475,0.00028879,2]
[327722000,1716381051785,-313.88315653,0.0002888,2]
[327722001,1716381051794,-157.54884506,0.00028883,2]
[327722002,1716381051806,-3675.57893793,0.0002895,2]
[327722003,1716381051815,-211.268041,0.0002895,7]
[327722004,1716381051824,-211.268041,0.0002895,7]
[327722005,1716381051834,-183.206912,0.0002895,7]
[327722006,1716381051843,-183.206912,0.0002895,7]
[327722007,1716381051852,-290.156472,0.0002895,7]
[327722008,1716381051861,-290.156472,0.0002895,7]
[327722009,1716381051871,-468.213742,0.0002895,7]
[327722010,1716381051880,-468.213742,0.0002895,7]
[327722011,1716381051889,-151.0,0.0002895,7]
[327722012,1716381051899,-151.0,0.0002895,7]
[327722013,1716381051908,-151.0,0.0002895,7]
[327722014,1716381051916,-151.0,0.0002895,7]
[327722015,1716381051925,-151.0,0.0002895,7]
[327722016,1716381051934,-177.775491,0.0002895,7]
[327722017,1716381051944,-155.31485281,0.00028982,2]
[327722018,1716381051953,-543.40714206,0.00028989,2]
[327722019,1716381051963,-5000.0,0.00029,2]
[327722020,1716381051972,-146366.97030517,0.00029,2]
[327722021,1716381051981,-296.81569887,0.00029,4]
[327722022,1716381051990,-2000.0,0.00029,2]
[327722023,1716381052000,-208.24890269,0.00029,30]
[327722024,1716381052009,-12660.485417,0.00029,8]
[327722025,1716381052018,-720.92363512,0.00029,2]
[327722026,1716381052028,-151.0,0.00029,7]
[327722027,1716381052037,-173.1015,0.00029,7]
[327722028,1716381052046,-173.1015,0.00029,7]
[327722029,1716381052060,-169.896548,0.00029,7]
[327722030,1716381052068,-169.896548,0.00029,7]
[327722031,1716381052077,-151.0,0.00029,7]
[327722032,1716381052086,-167.32065,0.00029,7]
[327722033,1716381052095,-151.0,0.00029,7]
[327722034,1716381052104,-151.0,0.00029,7]
[327722035,1716381052113,-151.0,0.00029,7]
[327722036,1716381052123,-151.0,0.00029,7]
[327722037,1716381052132,-1800.0,0.00029,30]
[327722038,1716381052145,-287.042657,0.00029,7]
[327722039,1716381052155,-151.0,0.00029,7]
[327722040,1716381052164,-151.0,0.00029,7]
[327722041,1716381052174,-151.0,0.00029,7]
[327722042,1716381052184,-151.0,0.00029,7]
[327722043,1716381052194,-151.0,0.00029,7]
[327722044,1716381052203,-151.0,0.00029,7]
[327722045,1716381052213,-151.0,0.00029,7]
[327722046,1716381052224,-151.0,0.00029,7]
[327722047,1716381052235,-151.0,0.00029,7]
[327722048,1716381052244,-151.0,0.00029,7]
[327722049,1716381052254,-151.0,0.00029,7]
[327722050,1716381052263,-151.0,0.00029,7]
[327722051,1716381052272,-151.0,0.00029,7]
[327722052,1716381052282,-151.0,0.00029,7]
[327722053,1716381052292,-229.398464,0.00029,7]
[327722054,1716381052301,-211.268041,0.00029,7]
[327722055,1716381052312,-211.268041,0.00029,7]
[327722056,1716381052322,-183.206912,0.00029,7]
[327722057,1716381052332,-290.156472,0.00029,7]
[327722058,1716381052342,-183.206912,0.00029,7]
[327722059,1716381052351,-290.156472,0.00029,7]
[327722060,1716381052361,-468.213742,0.00029,7]
[327722061,1716381052370,-468.213742,0.00029,7]
[327722062,1716381052379,-151.0,0.00029,7]
[327722063,1716381052389,-298.038816,0.00029,7]
[327722064,1716381052398,-151.0,0.00029,7]
[327722065,1716381052407,-151.0,0.00029,7]
[327722066,1716381052416,-151.0,0.00029,7]
[327722067,1716381052426,-151.0,0.00029,7]
[327722068,1716381052435,-1719.128717,0.00029,7]
[327722069,1716381052444,-1719.128717,0.00029,7]
[327722070,1716381052454,-153.956021,0.00029,7]
[327722071,1716381052463,-176.886962,0.00029,7]
[327722072,1716381052473,-153.956021,0.00029,7]
[327722073,1716381052482,-176.886962,0.00029,7]
[327722074,1716381052492,-277.207136,0.00029,7]
[327722075,1716381052501,-277.207136,0.00029,7]
[327722076,1716381052510,-151.0,0.00029,7]
[327722077,1716381052520,-154.49054118,0.00029008,2]
[327722078,1716381052529,-151.0,0.00029033,2]
[327722079,1716381052538,-250.49088,0.00029033,2]
[327722080,1716381052547,-159.36999109,0.00029191,2]
[327722081,1716381052560,-173.1015,0.00029199,7]
[327722082,1716381052568,-173.1015,0.00029199,7]
[327722083,1716381052577,-169.896548,0.00029199,7]
[327722084,1716381052586,-169.896548,0.00029199,7]
[327722085,1716381052595,-151.0,0.00029199,7]
[327722086,1716381052604,-151.0,0.00029199,7]
[327722087,1716381052614,-151.0,0.00029199,7]
[327722088,1716381052623,-161443.73737561,0.000292,2]
[327722089,1716381052668,-6460.9994573,0.000292,2]
[327722090,1716381052680,-4852.6012,0.000292,2]
[327722091,1716381052692,-77242.66196709,0.000292,2]
[327722092,1716381052701,-189.357145,0.000292,7]
[327722093,1716381052711,-1575.86,0.000292,2]
[327722094,1716381052720,-1889.05,0.000292,2]